fUSD/lending_fUSD_20240706
["ID","MTS","AMOUNT","RATE_DAILY","PERIOD"]
[331341374,1720255833240,-919.70999,0.00012574,2]
[331341377,1720255833251,-500.0,0.00012574,2]
[331341379,1720255833263,-704.92261432,0.00012574,2]
[331341381,1720255833274,-609.84998907,0.00012574,2]
[331341383,1720255833284,-300.0,0.00012574,2]
[331341385,1720255833293,-187.22,0.00012575,2]
[331341387,1720255833302,-150.0,0.000126,2]
[331341389,1720255833311,-200.0,0.00012634,2]
[331341391,1720255833320,-885.25980048,0.00012718,2]
[331341392,1720255833331,-114.74019952,0.00012718,2]
[331341393,1720255833340,-598.33346314,0.00012778,2]
[331341394,1720255833352,-893.59727248,0.00012778,2]
[331341405,1720255838744,-7661.13473056,0.00012778,2]
[331341406,1720255838759,-14589.83398039,0.00012778,2]
[331341407,1720255838771,-157.10055343,0.00012778,2]
[331341408,1720255838782,-150.0,0.0001295,2]
[331341409,1720255838792,-269.77391209,0.00013087,2]
[331341410,1720255838807,-1640.22608791,0.00013087,2]
[331341411,1720255838817,-1500.0,0.00013128,2]
[331341412,1720255838828,-5051.7003,0.00013156,2]
[331341413,1720255838838,-499.99,0.00013156,2]
[331341414,1720255838848,-300.43,0.00013165,2]
[331341415,1720255838858,-150.0,0.00013178,2]
[331341416,1720255838868,-250.0,0.0001321,2]
[331341417,1720255838878,-153.01,0.00013238,2]
[331341418,1720255838888,-150.99,0.00013238,2]
[331341419,1720255838901,-150.0,0.000133,2]
[331341420,1720255838911,-153.01,0.00013307,2]
[331341421,1720255838922,-153.01,0.00013376,2]
[331341422,1720255838931,-153.01,0.00013445,2]
[331341423,1720255838942,-153.01,0.00013514,2]
[331341424,1720255838952,-5768.05262626,0.0001358,2]
[331341425,1720255838962,-153.01,0.00013583,2]
[331341426,1720255838971,-150.0,0.0001365,2]
[331341427,1720255838981,-153.01,0.00013652,2]
[331341428,1720255838991,-413.28,0.00013673,2]
[331341429,1720255839000,-299.99,0.00013673,2]
[331341430,1720255839011,-305.26,0.00013699,2]
[331341431,1720255839021,-200.0,0.00013699,2]
[331341432,1720255839032,-16899.78,0.000137,2]
[331341433,1720255839042,-170.05,0.0001371,2]
[331341434,1720255839053,-153.01,0.00013721,2]
[331341435,1720255839064,-153.01,0.0001379,2]
[331341436,1720255839075,-420.0,0.00013796,2]
[331341437,1720255839086,-73086.4892383,0.000138,2]
[331341438,1720255839096,-37930.9618,0.000138,2]
[331341439,1720255839107,-73872.7661,0.000138,2]
[331341440,1720255839117,-1000.0,0.000138,2]
[331341441,1720255839128,-778.0535,0.000138,2]
[331341442,1720255839139,-385.52794989,0.0001384,2]
[331341443,1720255839148,-153.01,0.00013859,2]
[331341444,1720255839159,-500.0,0.00013887,2]
[331341445,1720255839170,-500.0,0.00013888,2]
[331341446,1720255839181,-500.0,0.00013888,2]
[331341447,1720255839192,-200.0,0.00013888,2]
[331341448,1720255839203,-691.23099453,0.00013889,2]
[331341449,1720255839214,-650.15508795,0.00013899,2]
[331341450,1720255839512,-209.7986185,0.00013899,2]
[331341451,1720255839534,-346.5178534,0.00013899,2]
[331341452,1720255839544,-216.43856807,0.00013899,2]
[331341453,1720255839556,-500.0,0.000139,2]
[331341454,1720255839566,-224.77092236,0.000139,2]
[331341455,1720255839577,-11339.35342945,0.000139,2]
[331341456,1720255839587,-7500.0,0.000139,2]
[331341457,1720255839597,-29423.0867461,0.000139,2]
[331341458,1720255839608,-255.24341873,0.000139,2]
[331341459,1720255839618,-382.93477258,0.000139,2]
[331341460,1720255839629,-826.01696802,0.000139,2]
[331341461,1720255839639,-153.01,0.00013928,2]
[331341462,1720255839649,-163.64202156,0.00013989,2]
[331341463,1720255839659,-1264.71516221,0.00013999,5]
[331341464,1720255839670,-1264.71516222,0.00013999,5]
[331341465,1720255839680,-155.0,0.00013999,2]
[331341466,1720255839690,-199.16688941,0.00013999,2]
[331341467,1720255839700,-195.68863561,0.00013999,2]
[331341468,1720255839710,-697.0,0.00014,2]
[331341469,1720255839720,-1921104.89990242,0.00014,2]
[331341473,1720255840181,-4070.16904226,0.00014,2]
[331341474,1720255840281,-902.63081299,0.00014,2]
[331341475,1720255841493,-530.86535505,0.00014,2]
[331341483,1720255841505,-8809.41917258,0.00014,2]
[331341487,1720255841517,-15993.81369969,0.00014,2]
[331341491,1720255841529,-1050.51565051,0.00014,2]
[331341497,1720255841540,-4130.24694756,0.00014,2]
[331341500,1720255841554,-193410.34732084,0.00014,2]
[331341506,1720255841566,-4758.8714046,0.00014,2]
[331341508,1720255841577,-197248.86786876,0.00014,2]
[331341510,1720255841588,-1587.82059042,0.00014,2]
[331341512,1720255841599,-5169.12813013,0.00014,2]
[331341515,1720255841611,-453.8784,0.00014,2]
[331341518,1720255841622,-1107.05229675,0.00014,2]
[331341522,1720255841633,-659.94979241,0.00014,2]
[331341525,1720255841644,-739.22147062,0.00014,2]
[331341528,1720255841655,-1035.81827002,0.00014,2]
[331341532,1720255841666,-53826.72890797,0.00014,2]
[331341535,1720255841678,-62484.29335375,0.00014,2]
[331341538,1720255841689,-3670.25009546,0.00014,2]
[331341541,1720255841701,-254.82753692,0.00014,2]
[331341543,1720255841712,-362.35711128,0.00014,2]
[331341545,1720255841723,-1268.30780455,0.00014,2]
[331341547,1720255841735,-1819.99999776,0.00014,2]
[331341587,1720255843689,-310.96840629,0.00011409,2]
[331341589,1720255843701,-649.08780852,0.00011409,2]
[331341590,1720255843711,-292.57856873,0.00013999,2]
[331341591,1720255843722,-628.0,0.00014,2]
[331341593,1720255843732,-3796.30855907,0.00014,2]
[331341594,1720255843743,-281.326473,0.00014,2]
[331341595,1720255843755,-3585.38400944,0.00014,2]
[331341596,1720255843766,-1017.6830018,0.00014,2]
[331341597,1720255843778,-400.36535376,0.00014,2]
[331341598,1720255843789,-446.51173508,0.00014,2]
[331341599,1720255844458,-383.30696474,0.00014,2]
[331341600,1720255844471,-475051.00301031,0.00014,2]
[331341601,1720255844484,-35632.47706054,0.00014,2]
[331341602,1720255844495,-590.6363332,0.00014,2]
[331341603,1720255844507,-535.64936548,0.00014,2]
[331341604,1720255844518,-16736.653565,0.00014,2]
[331341605,1720255844529,-615.28590621,0.00014,2]
[331341606,1720255844541,-460.32635449,0.00014,2]
[331341607,1720255844553,-3765.60423711,0.00014,2]
[331341608,1720255844565,-57292.87525878,0.00014,2]
[331341609,1720255844576,-10475.19883426,0.00014,2]
[331341610,1720255844587,-600.64996105,0.00014,2]
[331341611,1720255844599,-1468.79524653,0.00014,2]
[331341612,1720255844610,-9845.86782378,0.00014,2]
[331341613,1720255844621,-5087.95758776,0.00014,2]
[331341614,1720255844634,-3986.93976637,0.00014,2]
[331341622,1720255847402,-2215.93049972,0.00014,2]
[331341623,1720255847414,-488.08122528,0.00014,2]
[331341624,1720255847427,-824.87598985,0.00014,2]
[331341625,1720255847439,-360.52480786,0.00014,2]
[331341626,1720255847685,-1578.22307327,0.00014,2]
[331341627,1720255847696,-581.7,0.00014,2]
[331341628,1720255847781,-86269.45008506,0.00014,2]
[331341629,1720255847797,-11834.16071366,0.00014,2]
[331341630,1720255847814,-9387.58914612,0.00014,2]
[331341631,1720255847825,-99585.39305449,0.00014,2]
[331341643,1720256475229,155.0,0.00011199,2]
[331341644,1720256479011,453.91,0.00010053,2]
[331341646,1720256579052,348.70295838,0.00010053,2]
[331341647,1720256583113,-200.0,0.00016959,7]
[331341648,1720256583136,-200.0,0.00016959,7]
[331341649,1720256583162,-200.0,0.00016959,7]
[331341650,1720256583187,-200.0,0.00016959,7]
[331341651,1720256583210,-200.0,0.00016959,7]
[331341652,1720256583232,-200.0,0.00016959,7]
[331341653,1720256583255,-200.0,0.00016959,7]
[331341654,1720256623168,219.93960229,0.00010053,2]
[331341655,1720256644266,310349.31377504,0.00010053,2]
[331341656,1720256644297,185913.89324321,0.00010053,2]
[331341657,1720256658870,159.10719029,0.00011199,2]
[331341658,1720256669059,348.70295838,0.00010053,2]
[331341659,1720256720431,155.0,0.00011199,2]
[331341660,1720256735412,201.62138373,0.00011199,2]
[331341661,1720256737631,155.13435004,0.00011199,2]
[331341662,1720256738140,5387.46776743,0.00011199,2]
[331341665,1720256742256,496263.20701825,0.00010053,2]
[331341666,1720256748885,2737.79461804,0.00011199,2]
[331341667,1720256749315,647.26467047,0.00011199,2]
[331341668,1720256750247,186.63204911,0.00011199,2]
[331341669,1720256751758,156.31373008,0.00011199,2]
[331341670,1720256752092,155.0,0.00011199,2]
[331341671,1720256752261,155.000001,0.00011199,2]
[331341672,1720256752555,241.58065957,0.00011199,2]
[331341673,1720256754772,155.0,0.00011199,2]
[331341674,1720256754809,517.81001173,0.00011199,2]
[331341675,1720256754955,155.41636692,0.00011199,2]
[331341676,1720256757950,218.57444602,0.00011199,2]
[331341677,1720256759365,172.33478691,0.00011199,2]
[331341678,1720256759772,182.82584984,0.00011199,2]
[331341679,1720256760761,430.86561068,0.00011199,2]
[331341680,1720256761547,776.46360975,0.00011199,2]
[331341681,1720256763081,155.18188841,0.00011199,2]
[331341682,1720256765075,312.87624999,0.00010053,2]
[331341683,1720256765854,1041.5749294,0.00011199,2]
[331341684,1720256768149,403.26835663,0.00010053,2]
[331341685,1720256769053,155.34312372,0.00011199,2]
[331341686,1720256783793,403.26835663,0.00010053,2]
[331341687,1720256809576,155.6464288,0.00011199,2]
[331341688,1720256828011,2200.02980555,0.00011199,2]
[331341689,1720256837951,5387.46776743,0.00011199,2]
[331341690,1720256839703,363.23326655,0.00011199,2]
[331341691,1720256843286,316140.97249465,0.00010053,2]
[331341692,1720256886039,155.0,0.00011199,2]
[331341693,1720256901744,155.0,0.00011199,2]
[331341694,1720256913793,-250.0,0.00011678,2]
[331341695,1720256913821,-1000.0,0.00011733,2]
[331341696,1720256913850,-299.0,0.00011748,2]
[331341697,1720256913878,-300.0,0.00011748,2]
[331341698,1720256913959,-22537.38,0.00011749,2]
[331341699,1720256913988,-50000.0,0.00011833,2]
[331341700,1720256914016,-2610.27,0.00011833,2]
[331341701,1720256930599,155.66263609,0.00011199,2]
[331341796,1720256952052,2397.68736391,0.00011199,2]
[331341797,1720256952079,76926.45437214,0.00011199,2]
[331342049,1720256992172,-823.07417776,0.00011693,2]
[331342062,1720257002817,150.0,0.00011199,2]
[331342063,1720257002992,150.0,0.00011199,2]
[331342064,1720257003172,211.44859975,0.00011199,2]
[331342099,1720257032164,-168.85,0.00011683,2]
[331342100,1720257032174,-150.0,0.00011683,2]
[331342101,1720257032184,-33.45582224,0.00011693,2]
[331342102,1720257032192,-250.72915544,0.00011844,2]
[331342103,1720257032204,-42.36084456,0.00011844,2]
[331342104,1720257032213,-293.09,0.00011877,2]
[331342105,1720257032223,-293.09,0.00011909,2]
[331342106,1720257032232,-293.09,0.00011942,2]
[331342107,1720257032242,-293.09,0.00011974,2]
[331342108,1720257032251,-293.09,0.00012007,2]
[331342109,1720257032260,-293.09,0.00012039,2]
[331342110,1720257032270,-77.65913195,0.00012072,2]
[331342111,1720257032282,-215.43086805,0.00012072,2]
[331342112,1720257032292,-1577.8049847,0.00012101,2]
[331342113,1720257032301,-293.09,0.00012104,2]
[331342114,1720257032310,-293.09,0.00012137,2]
[331342115,1720257032320,-245.22437787,0.00012167,2]
[331342116,1720257032333,-54.77562213,0.00012167,2]
[331342117,1720257032342,-398.73437787,0.00012168,2]
[331342118,1720257032354,-101.25562213,0.00012168,2]
[331342119,1720257032363,-150.99,0.00012168,2]
[331342120,1720257032372,-308.6,0.00012168,2]
[331342121,1720257032382,-293.09,0.00012169,2]
[331342122,1720257032392,-150.99,0.00012201,2]
[331342123,1720257032401,-1798.48,0.00012201,2]
[331342124,1720257032410,-1640.46,0.00012201,2]
[331342125,1720257032420,-293.09,0.00012202,2]
[331342126,1720257032430,-293.09,0.00012234,2]
[331342127,1720257032439,-178.44,0.00012264,2]
[331342128,1720257032448,-3028.31,0.00012267,2]
[331342129,1720257032458,-293.09,0.00012267,2]
[331342130,1720257032467,-228.53,0.00012274,2]
[331342131,1720257032477,-293.09,0.00012299,2]
[331342132,1720257032487,-453.91,0.00012317,2]
[331342133,1720257032496,-293.09,0.00012332,2]
[331342134,1720257032505,-293.09,0.00012364,2]
[331342135,1720257032515,-293.09,0.00012397,2]
[331342136,1720257032524,-293.09,0.00012429,2]
[331342137,1720257032534,-293.09,0.00012462,2]
[331342138,1720257032544,-1316.0,0.00012549,2]
[331342139,1720257032554,-150.0,0.000126,2]
[331342140,1720257032563,-150.0,0.0001263,2]
[331342141,1720257032573,-156.9,0.00012675,2]
[331342142,1720257032583,-156.9,0.00012679,2]
[331342143,1720257032592,-156.9,0.00012682,2]
[331342144,1720257032601,-156.9,0.00012686,2]
[331342145,1720257032611,-156.9,0.0001269,2]
[331342146,1720257032620,-156.9,0.00012693,2]
[331342147,1720257032630,-156.9,0.00012697,2]
[331342148,1720257032639,-156.9,0.00012701,2]
[331342149,1720257032649,-156.9,0.00012705,2]
[331342150,1720257032659,-999.99,0.00012705,2]
[331342151,1720257032668,-156.9,0.00012708,2]
[331342152,1720257032677,-156.9,0.00012712,2]
[331342153,1720257032686,-156.9,0.00012716,2]
[331342154,1720257032695,-156.9,0.0001272,2]
[331342155,1720257032705,-156.9,0.00012723,2]
[331342156,1720257032714,-156.9,0.00012727,2]
[331342157,1720257032723,-156.9,0.00012731,2]
[331342158,1720257032732,-156.9,0.00012734,2]
[331342159,1720257032742,-156.9,0.00012738,2]
[331342160,1720257032751,-169.53,0.00012804,2]
[331342161,1720257032760,-27142.99559255,0.00012888,2]
[331342162,1720257032769,-171.29,0.00013084,2]
[331342163,1720257032779,-1000.0,0.000132,2]
[331342164,1720257032787,-420.0,0.00013354,2]
[331342165,1720257032797,-3787.18344278,0.00013472,2]
[331342166,1720257032806,-258.8667,0.000135,2]
[331342167,1720257032820,-1876.541,0.000135,2]
[331342168,1720257032829,-1000.0,0.000135,2]
[331342169,1720257032839,-1539.22186164,0.00013516,2]
[331342170,1720257032848,-241.49560116,0.00013543,2]
[331342171,1720257032859,-185626.73129239,0.000136,2]
[331342172,1720257032871,-347.60875311,0.000136,2]
[331342173,1720257032882,-717.48660457,0.000136,2]
[331342174,1720257032895,-2879.4795,0.000136,2]
[331342175,1720257033338,-3875.05274993,0.000136,2]
[331342176,1720257033348,-837.55652505,0.000136,2]
[331342177,1720257033358,-837.55652504,0.00013643,2]
[331342178,1720257033368,-837.55652504,0.00013686,2]
[331342179,1720257033378,-2644.97,0.00013699,2]
[331342180,1720257033387,-1568.33,0.00013699,2]
[331342181,1720257033396,-500.0,0.00013699,2]
[331342182,1720257033406,-1660.56,0.00013699,2]
[331342183,1720257033415,-200.0,0.00013699,2]
[331342184,1720257033425,-2846.79011484,0.00013699,2]
[331342185,1720257033437,-1562.75,0.00013699,2]
[331342186,1720257033448,-1640.90083413,0.00013699,2]
[331342187,1720257033459,-336.000007,0.00013699,2]
[331342188,1720257033470,-865.40085224,0.00013699,2]
[331342189,1720257033482,-1094.6407865,0.00013699,2]
[331342190,1720257033493,-1653.51740529,0.00013699,2]
[331342191,1720257033503,-500.0,0.000137,2]
[331342192,1720257033513,-66.78978559,0.000137,2]
[331342193,1720257037995,-726.08904086,0.000137,2]
[331342195,1720257038008,-318.030809,0.000137,2]
[331342196,1720257038020,-1663.42808206,0.000137,2]
[331342205,1720257039201,-401.05803429,0.000137,2]
[331342209,1720257039214,-27953.20241367,0.000137,2]
[331342213,1720257039227,-1592.65686539,0.000137,2]
[331342215,1720257039239,-67278.74496914,0.000137,2]
[331342217,1720257039250,-13228.5619,0.000137,2]
[331342219,1720257039260,-837.55652504,0.00013729,2]
[331342221,1720257039270,-837.55652504,0.00013771,2]
[331342222,1720257039281,-7500.0,0.000138,2]
[331342224,1720257039291,-385.52794989,0.00013809,2]
[331342226,1720257039302,-837.55652504,0.00013814,2]
[331342228,1720257039311,-292.43867639,0.00013849,2]
[331342230,1720257039322,-720.09204165,0.00013849,2]
[331342232,1720257039333,-837.55652504,0.00013857,2]
[331342234,1720257039344,-2434.69714,0.0001386,2]
[331342236,1720257039354,-500.0,0.00013888,2]
[331342238,1720257039365,-200.0,0.00013888,2]
[331342240,1720257039376,-546.16417229,0.00013889,2]
[331342242,1720257039386,-599.27979208,0.00013889,2]
[331342244,1720257039397,-346.60490841,0.00013899,2]
[331342246,1720257039407,-159.63593278,0.00013899,2]
[331342248,1720257039417,-6557.3736,0.000139,2]
[331342250,1720257039428,-1000.0,0.000139,2]
[331342252,1720257039438,-2314.8852,0.000139,2]
[331342254,1720257039448,-179.81673788,0.000139,2]
[331342256,1720257039458,-11457.99526428,0.000139,2]
[331342258,1720257039468,-25000.0,0.000139,2]
[331342260,1720257039478,-3952.05696686,0.000139,2]
[331342262,1720257039488,-837.55652504,0.000139,2]
[331342264,1720257039498,-170.10454582,0.000139,2]
[331342266,1720257039508,-191.46738629,0.000139,2]
[331342268,1720257039518,-550.67797868,0.000139,2]
[331342270,1720257039527,-202.10180192,0.0001399,2]
[331342272,1720257039538,-209.83691586,0.00013999,2]
[331342274,1720257039547,-379.90116565,0.00013999,2]
[331342276,1720257039557,-2485.78086337,0.00013999,2]
[331342278,1720257039567,-2248.80166365,0.00013999,2]
[331342279,1720257039576,-210.18261467,0.00013999,2]
[331342281,1720257039586,-6220.29005619,0.00013999,2]
[331342284,1720257039596,-209.81779411,0.00013999,2]
[331342285,1720257039607,-556.0,0.00014,2]
[331342287,1720257039617,-931861.20152674,0.00014,2]
[331342290,1720257039630,-48162.45389695,0.00014,2]
[331342292,1720257039642,-573.69,0.00014,2]
[331342294,1720257039654,-114026.0628407,0.00014,2]
[331342307,1720257039782,-8.28595967,0.00014,2]
[331342422,1720257040911,-221.80430163,0.00013889,2]
[331342425,1720257040921,-2476885.36844858,0.00014,2]
[331342428,1720257040933,-33474.28134237,0.00014,2]
[331342432,1720257040944,-427.8153428,0.00014,2]
[331342435,1720257040956,-674.77624646,0.00014,2]
[331342438,1720257040967,-1438.4257,0.00014,2]
[331342443,1720257040978,-1356.0,0.00014,2]
[331342446,1720257040989,-579.62038,0.00014,2]
[331342448,1720257041003,-4111.22190836,0.00014,2]
[331342450,1720257041014,-11553.6,0.00014,2]
[331342453,1720257041026,-1648.25928851,0.00014,2]
[331342455,1720257041037,-2078.47176684,0.00014,2]
[331342457,1720257041049,-580.86487696,0.00014,2]
[331342459,1720257041060,-725.78261221,0.00014,2]
[331342478,1720257041241,-31.0570921,0.00014,2]
[331342480,1720257041253,-489.17891229,0.00014,2]
[331342482,1720257041264,-2109.83608234,0.00014,2]
[331342485,1720257041276,-949.17247159,0.00014,2]
[331342568,1720257043032,-1326.22425809,0.00014,2]
[331342577,1720257043951,-1377.53454,0.00014,2]
[331342578,1720257043963,-1065525.77906019,0.00014,2]
[331342579,1720257043975,-1047.40550235,0.00014,2]
[331342580,1720257043987,-8479.63585047,0.00014,2]
[331342581,1720257043998,-4785.13275,0.00014,2]
[331342582,1720257044010,-341.54051963,0.00014,2]
[331342585,1720257045448,-4023.18759903,0.00014,2]
[331342586,1720257045460,-882.85227502,0.00014,2]
[331342587,1720257045472,-529.22920077,0.00014,2]
[331342598,1720257047028,-940.63593061,0.000138,2]
[331342599,1720257047040,-1656.3017799,0.000138,2]
[331342600,1720257047051,-3828.83999401,0.000138,2]
[331342601,1720257047060,-233.13387345,0.00013999,2]
[331342602,1720257047070,-52346.9767378,0.00014,2]
[331342603,1720257047082,-5098.07588448,0.00014,2]
[331342604,1720257047093,-480.60509733,0.00014,2]
[331342605,1720257047105,-345.77195235,0.00014,2]
[331342606,1720257047117,-2002.60582345,0.00014,2]
[331342612,1720257047750,-209.83691586,0.00013999,2]
[331342613,1720257047760,-1657.18724225,0.00013999,2]
[331342614,1720257047770,-482381.2694006,0.00014,2]
[331342615,1720257047781,-1869.3662922,0.00014,2]
[331342616,1720257047792,-1509.72176309,0.00014,2]
[331342620,1720257084767,960.05621481,0.00011199,2]
[331342623,1720257187637,585.63,0.00010959,2]
[331342624,1720257203663,1000.0,0.00025,60]
[331342625,1720257227336,165.8,0.00011085,2]
[331342626,1720257313426,8049.36677896,0.00011199,2]
[331342627,1720257327192,9243.95132201,0.00011199,2]
[331342628,1720257421580,24723.29922475,0.00011199,2]
[331342629,1720257458487,155.0,0.00011199,2]
[331342630,1720257475283,155.0,0.00011199,2]
[331342631,1720257494517,156.62457168,0.00011199,2]
[331342632,1720257503113,264.597237,0.00011199,2]
[331342634,1720257533588,8206.35455717,0.00011199,2]
[331342635,1720257600501,7143.6513888,0.00011199,2]
[331342636,1720257648397,443.8,0.00011023,2]
[331342637,1720257861560,1547.78863755,0.00011199,2]
[331342638,1720257875855,1063.55060997,0.00011199,2]
[331342639,1720257955047,155.0,0.00011199,2]
[331342660,1720258041943,202.11963924,0.00011199,2]
[331342661,1720258043315,268.39970758,0.00011199,2]
[331342662,1720258073589,1547.78863755,0.00011199,2]
[331342663,1720258101671,451.25835794,0.00011199,2]
[331342772,1720258219246,7011.54839248,0.00011199,2]
[331342776,1720258232619,-505.95034743,0.00012273,2]
[331342777,1720258232632,-1659.51209722,0.00012273,2]
[331342778,1720258232642,-1071.01746331,0.00012302,2]
[331342780,1720258232651,-169.53,0.00012485,2]
[331342782,1720258232660,-150.0,0.000126,2]
[331342784,1720258232669,-250.0,0.00012638,2]
[331342786,1720258232679,-500.0,0.0001266,2]
[331342788,1720258232689,-449.78,0.00012718,2]
[331342790,1720258232698,-250.0,0.00012718,2]
[331342792,1720258232708,-1000.0,0.00012721,2]
[331342794,1720258232717,-211.1479264,0.00012753,2]
[331342796,1720258232729,-31.8520736,0.00012753,2]
[331342798,1720258232738,-3232.93883791,0.00012754,2]
[331342800,1720258232751,-3632.78955397,0.00012754,2]
[331342802,1720258232762,-6330.99425642,0.00012754,2]
[331342804,1720258232774,-2100.0,0.00012754,2]
[331342806,1720258232785,-2121.37763752,0.00012754,2]
[331342807,1720258232797,-466.63551131,0.00012754,2]
[331342808,1720258232808,-3172.60248449,0.00012754,2]
[331342836,1720258238318,-597.4,0.00012754,2]
[331342838,1720258238332,-575.48925,0.00012754,2]
[331342840,1720258238346,-275.58000008,0.00012754,2]
[331342842,1720258238358,-1384.1924683,0.00012754,2]
[331342844,1720258238368,-200.0,0.00012773,2]
[331342845,1720258238377,-342.11,0.00012831,2]
[331342846,1720258238387,-187.22,0.00012947,2]
[331342847,1720258238396,-150.0,0.0001308,2]
[331342848,1720258238410,-1314.83748725,0.0001308,2]
[331342849,1720258238420,-168.84,0.00013081,2]
[331342850,1720258238431,-34775.78,0.00013081,2]
[331342851,1720258238441,-499.99,0.00013081,2]
[331342852,1720258238452,-155.0,0.00013128,2]
[331342853,1720258238462,-208.63065251,0.00013128,2]
[331342854,1720258238472,-178.44,0.00013167,2]
[331342855,1720258238481,-299.99,0.00013287,2]
[331342856,1720258238491,-152.35,0.00013294,2]
[331342857,1720258238500,-182.46591203,0.00013372,2]
[331342858,1720258238510,-2500.0,0.000134,2]
[331342859,1720258238520,-1547.78863755,0.00013472,2]
[331342860,1720258238531,-10483.9861,0.000135,2]
[331342861,1720258238540,-2967.37874238,0.000135,2]
[331342862,1720258238552,-614.32,0.000135,2]
[331342948,1720258240444,-208.63065251,0.00013128,2]
[331342950,1720258240456,-841.36934749,0.000135,2]
[331342951,1720258240470,-449.03088406,0.000135,2]
[331342952,1720258240482,-768.95049403,0.000135,2]
[331342959,1720258241305,-600.61999999,0.000135,2]
[331343066,1720258246486,-711.82512358,0.000135,2]
[331343162,1720258247725,-421.61,0.0001213,2]
[331343163,1720258247737,-2288.89707352,0.000135,2]
[331343164,1720258247749,-590.82,0.000135,2]
[331343165,1720258247761,-4025.36650947,0.000135,2]
[331343166,1720258247773,-5770.89999999,0.000135,2]
[331343167,1720258247785,-5877.48859263,0.000135,2]
[331343168,1720258247797,-786.25,0.000135,2]
[331343169,1720258247813,-1651.07245401,0.000135,2]
[331343170,1720258247825,-1477.27432903,0.000135,2]
[331343176,1720258388428,2375.00109298,0.00011199,2]
[331343177,1720258401259,9242.06086405,0.00011199,2]
[331343178,1720258427365,125622.27658835,0.00011199,2]
[331343179,1720258455937,2235.54367464,0.00011,2]
[331343180,1720258476270,15600.05482938,6.94e-05,2]
[331343181,1720258554160,685.14451651,0.00011199,2]
[331343182,1720258558075,23576.45265684,0.000112,2]
[331343183,1720258626576,6896.88917633,0.00011199,2]
[331343184,1720258629769,526.92735298,0.00011199,2]
[331343185,1720258644285,8792.10096081,0.00011199,2]
[331343186,1720258672339,206.37884908,0.00011199,2]
[331343187,1720258681341,450.32528097,0.00011199,2]
[331343188,1720258702250,254.28869471,0.00011199,2]
[331343189,1720258720896,313.95040428,0.00011199,2]
[331343190,1720258802513,150.0,0.00011199,2]
[331343191,1720258803039,150.0,0.00011199,2]
[331343192,1720258803352,150.0,0.00011199,2]
[331343193,1720258803917,150.0,0.00011199,2]
[331343194,1720258804148,150.0,0.00011199,2]
[331343195,1720258815133,552.69,0.00010415,2]
[331343196,1720258834481,955.85753929,0.00011199,2]
[331343197,1720258850655,259.86107335,0.00026,120]
[331343198,1720258881795,9242.06086405,0.00011199,2]
[331343199,1720259039210,155.0,0.00011199,2]
[331343200,1720259112258,163.88072823,0.00011199,2]
[331343203,1720259163266,155.0,0.00011199,2]
[331343204,1720259179783,254.16575329,0.00011199,2]
[331343209,1720259327072,525.05,0.00010155,2]
[331343277,1720259432576,-500.0,0.0001185,2]
[331343279,1720259432585,-187.22,0.0001189,2]
[331343281,1720259432595,-873.8773,0.00011972,2]
[331343283,1720259432605,-250.0,0.00011995,2]
[331343285,1720259432616,-250.0,0.00012009,2]
[331343287,1720259432631,-2537.72,0.00012038,2]
[331343289,1720259432640,-500.0,0.00012051,2]
[331343291,1720259432650,-3882.16227088,0.00012072,2]
[331343292,1720259432663,-1085.42033485,0.00012072,2]
[331343293,1720259432675,-17724.61739427,0.00012072,2]